bitfinex/quotes_ETHUSD_20241216
["timestamp","ask_amount","ask_price","bid_price","bid_amount"]
[1734310295218,0.7996,4005.2,4004.0,0.20285387]
[1734310295418,0.7996,4005.2,4004.2,2.49735]
[1734310295740,0.7996,4005.2,4003.4,0.8115]
[1734310295741,0.7996,4005.2,4004.3,0.07801863]
[1734310295947,0.7996,4005.2,4004.4,0.07801863]
[1734310296156,0.7996,4005.2,4004.0,0.12481968]
[1734310296439,2.49688,4005.0,4004.1,0.07801117]
[1734310296641,5.42848234,4004.9,4003.5,0.12483503]
[1734310296859,2.93152234,4004.9,4003.6,0.07802365]
[1734310296988,2.93152234,4004.9,4003.7,0.07802365]
[1734310297352,2.93152234,4004.3,4003.1,0.12625117]
[1734310297644,2.49751,4004.0,4002.3,0.9285235]
[1734310297960,0.7783,4003.6,4002.4,0.07803821]
[1734310298242,0.7783,4003.6,4002.5,0.07803821]
[1734310298422,0.7783,4003.6,4002.3,3.4270535]
[1734310298589,0.04567198,4003.9,4002.4,0.20292579]
[1734310298791,0.25,4005.8,4003.3,2.49792]
[1734310298792,0.8139,4004.5,4003.3,2.49792]
[1734310299041,2.49652,4005.6,4003.4,1.02995299]
[1734310299042,0.8139,4005.2,4003.4,1.02995299]
[1734310299191,0.8139,4005.2,4003.5,0.20285299]
[1734310299394,2.93152234,4005.0,4003.6,0.07802038]
[1734310299625,2.93152234,4005.0,4002.5,6.3]
[1734310299626,2.49711,4004.7,4002.8,2.49823]
[1734310299832,2.93152234,4004.4,4002.9,0.20286732]
[1734310300034,2.93152234,4004.4,4002.8,0.8271]
[1734310300035,2.54302198,4004.3,4003.0,0.07802589]
[1734310300344,0.04567198,4004.3,4002.8,0.8271]
[1734310300662,0.04567198,4004.3,4002.9,0.12485829]
[1734310300939,2.54299198,4004.3,4002.8,0.8271]
[1734310301141,0.04567198,4004.3,4002.9,0.07803951]
[1734310301345,0.04567198,4004.3,4002.8,0.8271]
[1734310301526,0.04567198,4004.3,4002.4,2.49846]
[1734310301703,0.7916,4004.2,4002.6,2.49836]
[1734310302041,0.7916,4003.7,4002.3,0.1654235]
[1734310302195,2.49777,4003.6,4002.3,0.1654235]
[1734310302399,2.49782,4003.5,4002.3,0.1654235]
[1734310302819,2.93152234,4003.2,4002.5,2.49841]
[1734310303092,0.83727198,4003.7,4002.3,0.1654235]
[1734310303720,0.83727198,4003.7,4002.4,0.07803672]
[1734310303918,0.83727198,4003.7,4002.3,0.1654235]
[1734310304435,2.49776,4003.6,4002.3,0.1654235]
[1734310304643,0.83727198,4003.7,4002.3,0.1654235]
[1734310304994,3.76879432,4003.7,4002.3,0.1654235]
[1734310305193,2.4978,4003.6,4002.3,0.1654235]
[1734310305395,0.83727198,4003.7,4002.3,0.1654235]
[1734310305634,0.83727198,4003.7,4002.5,2.49842]
[1734310305833,0.83727198,4003.7,4002.3,0.1654235]
[1734310305834,0.04567198,4003.7,4002.3,0.19040739]
[1734310306037,0.7895,4004.2,4002.3,0.19040739]
[1734310306038,0.7895,4004.2,4002.4,0.25862257]
[1734310306240,0.7895,4004.8,4002.6,2.2927]
[1734310306453,0.7895,4004.8,4003.0,0.7967]
[1734310306615,2.93152234,4005.5,4003.1,0.25862257]
[1734310306616,2.49689,4005.0,4003.1,0.25862257]
[1734310306821,2.49689,4005.0,4003.4,2.49785]
[1734310307536,2.49695,4004.9,4003.2,2.49796]
[1734310307703,2.49695,4004.9,4003.3,2.49791]
[1734310308135,2.49702,4004.8,4003.0,3.41756222]
[1734310308314,2.49726,4004.4,4003.0,0.7967]
[1734310308517,2.49721,4004.5,4003.0,0.7967]
[1734310309052,5.42847234,4004.9,4002.5,0.7967]
[1734310309053,0.04567198,4004.4,4002.5,0.7967]
[1734310309217,2.49754,4004.0,4002.5,0.7967]
[1734310309418,2.49754,4004.0,4002.6,0.07803677]
[1734310309618,2.49746,4004.1,4002.5,0.7967]
[1734310309822,2.49746,4004.1,4002.6,0.07803767]
[1734310310023,0.8121,4006.7,4002.7,2.49831]
[1734310310221,0.8121,4006.7,4003.8,0.8037]
[1734310310444,0.8121,4006.7,4004.7,2.49705]
[1734310310445,2.49606,4006.4,4004.7,2.49705]
[1734310310667,0.8121,4006.7,4004.6,2.4971]
[1734310310838,0.8153,4005.8,4003.8,0.8037]
[1734310311039,2.49652,4005.6,4003.9,2.57553235]
[1734310311366,0.8153,4005.8,4004.0,0.07800896]
[1734310311570,3.3117,4005.8,4004.1,2.49744]
[1734310311869,2.49665,4005.4,4003.8,0.8037]
[1734310312068,0.8153,4005.8,4003.8,0.8037]
[1734310312069,2.4965,4005.6,4003.8,0.8037]
[1734310312228,2.49656,4005.5,4003.3,0.8014]
[1734310312433,2.49656,4005.5,4003.4,0.07802082]
[1734310312434,2.49695,4004.9,4003.4,0.07802082]
[1734310312628,0.76,4004.8,4003.5,0.07802082]
[1734310312840,0.76,4004.8,4003.3,0.8014]
[1734310313043,0.76,4004.8,4003.4,0.07802155]
[1734310313257,0.76,4004.8,4003.5,0.07802155]
[1734310313461,0.76,4004.8,4003.6,0.25886966]
[1734310313672,0.76,4004.8,4003.7,2.57568155]
[1734310313830,0.76,4004.8,4003.8,0.07802155]
[1734310314174,2.93152234,4005.5,4003.9,0.07801288]
[1734310314342,2.93152234,4005.5,4003.4,2.49786]
[1734310314541,2.4969,4005.0,4003.5,0.25913346]
[1734310314866,2.4969,4005.0,4003.6,0.07802089]
[1734310315067,2.4969,4005.0,4003.3,0.8014]
[1734310315370,2.4969,4005.0,4003.4,2.75701006]
[1734310315672,2.49726,4004.4,4003.5,0.25915006]
[1734310315832,0.7983,4004.2,4002.8,0.7848]
[1734310316033,2.49745,4004.1,4002.9,0.18135789]
[1734310316228,0.7983,4004.2,4002.4,0.7848]
[1734310316473,0.7983,4004.2,4002.5,0.25956616]
[1734310316796,2.49778,4003.6,4002.4,0.7848]
[1734310316953,2.49782,4003.5,4002.5,0.07804816]
[1734310317160,2.49782,4003.5,4002.4,0.7848]
[1734310317355,2.49782,4003.5,4002.5,0.07804925]
[1734310317557,2.49782,4003.5,4002.4,0.7848]
[1734310317756,0.7983,4004.2,4002.5,0.07804973]
[1734310317959,2.49759,4003.9,4002.6,0.07804649]
[1734310318177,0.7983,4004.2,4002.4,0.7848]
[1734310318178,0.7983,4004.2,4002.7,0.07804649]
[1734310318380,2.49776,4003.6,4002.4,0.7848]
[1734310318694,0.7983,4004.2,4002.5,0.07805088]
[1734310318695,2.49785,4003.5,4002.5,0.07805088]
[1734310318995,0.7983,4004.2,4002.6,0.07805088]
[1734310319214,2.93152234,4004.3,4002.3,0.1654235]
[1734310319215,2.4982,4002.9,4002.3,0.1654235]
[1734310319506,0.7637,4003.0,4002.3,0.1654235]
[1734310319647,2.49827,4002.8,4002.3,0.1654235]
[1734310319852,2.49846,4002.5,4002.3,0.1654235]
[1734310321294,2.49829,4002.8,4002.3,0.1654235]
[1734310321866,0.7637,4003.0,4002.3,0.1654235]
[1734310322198,3.26182,4003.0,4002.3,0.1654235]
[1734310322505,2.49823,4002.9,4002.3,0.1654235]
[1734310322669,0.7637,4003.0,4002.3,0.1654235]
[1734310322991,2.49822,4002.9,4002.3,0.1654235]
[1734310323409,0.7637,4003.0,4002.3,0.1654235]
[1734310323896,2.4979,4003.4,4002.3,0.1654235]
[1734310324087,0.7723,4003.6,4002.3,0.1654235]
[1734310324280,2.498,4003.2,4002.3,0.1654235]
[1734310324853,2.49789,4003.4,4002.3,0.1654235]
[1734310325087,2.49789,4003.4,4002.4,0.07805548]
[1734310325398,2.4985,4002.4,4002.3,0.1654235]
[1734310326198,2.93152234,4003.1,4002.3,0.1654235]
[1734310326199,0.7919,4003.9,4002.4,0.7894]
[1734310326405,0.7919,4003.9,4002.6,2.49836]
[1734310326711,0.7919,4003.9,4002.7,0.26033201]
[1734310326877,0.7919,4003.9,4002.8,0.26033201]
[1734310327075,2.49765,4003.8,4002.9,0.07805873]
[1734310327403,0.7919,4003.9,4003.0,0.07805873]
[1734310327711,0.7919,4003.9,4002.4,0.7894]
[1734310327712,0.7919,4003.9,4002.6,2.49834]
[1734310327917,0.7919,4004.4,4002.7,0.18222734]
[1734310328117,0.7919,4004.4,4002.8,0.92162734]
[1734310328312,0.7919,4004.4,4002.9,0.18222734]
[1734310328602,0.7919,4004.4,4002.8,0.7394]
[1734310328603,0.7919,4004.4,4003.0,2.75836962]
[1734310328809,0.7919,4004.4,4003.1,2.75829962]
[1734310328973,0.7919,4004.4,4003.2,2.75825962]
[1734310329361,0.7919,4004.4,4003.3,0.18222734]
[1734310329510,0.7919,4004.4,4003.4,0.07803189]
[1734310329717,3.28917,4004.4,4003.5,0.07803189]
[1734310329876,0.7919,4004.4,4002.8,0.7394]
[1734310330227,0.7919,4004.4,4003.0,2.49809]
[1734310330437,0.7919,4004.4,4002.8,0.7394]
[1734310330438,0.7919,4004.4,4003.1,0.26046664]
[1734310330727,0.7919,4004.4,4002.8,0.7394]
[1734310330869,0.7919,4004.4,4002.4,0.12721544]
[1734310331074,2.93152234,4004.3,4002.5,1.04387748]
[1734310331314,2.49773,4003.7,4002.6,0.26057748]
[1734310331519,2.49754,4004.0,4002.7,0.07804272]
[1734310331672,0.7919,4004.4,4003.0,2.49811]
[1734310331877,0.7919,4004.4,4003.1,0.18249384]
[1734310332101,0.7919,4004.4,4003.2,0.07804272]
[1734310332310,3.28917,4004.4,4003.3,0.26051778]
[1734310332472,3.28917,4004.4,4002.5,0.91105662]
[1734310332675,2.49752,4004.0,4002.6,0.26050183]
[1734310332913,2.93152234,4004.3,4002.7,0.26050183]
[1734310333129,2.49795,4003.3,4002.8,0.07803392]
[1734310333332,2.49795,4003.3,4002.5,0.7833]
[1734310333512,2.49795,4003.3,4002.6,0.07805137]
[1734310333844,2.49795,4003.3,4002.5,0.7833]
[1734310334141,2.49795,4003.3,4002.6,0.07804996]
[1734310334294,2.49795,4003.3,4002.1,0.7833]
[1734310334494,2.49802,4003.2,4002.4,0.26067066]
[1734310334734,2.49809,4003.1,4002.1,0.7833]
[1734310334943,2.4982,4002.9,4001.7,0.7833]
[1734310335440,2.49826,4002.8,4001.7,0.7833]
[1734310335607,2.93152234,4002.5,4000.7,1.00516721]
[1734310335809,0.7704,4002.4,4000.7,0.7833]
[1734310336026,0.7704,4002.4,4000.8,0.07808548]
[1734310336338,0.7704,4002.4,4000.9,0.26082025]
[1734310336339,2.49869,4002.1,4000.9,0.26082025]
[1734310336494,0.7704,4002.4,4000.7,3.28283]
[1734310336495,0.7704,4002.4,4000.7,0.7833]
[1734310336900,3.26892,4002.4,4000.7,0.7833]
[1734310337065,0.7704,4002.4,4000.7,0.7833]
[1734310337565,2.4981,4003.1,4000.7,0.7833]
[1734310337566,2.93152234,4002.7,4000.8,0.18271018]
[1734310337724,2.93152234,4002.7,4000.9,0.18271018]
[1734310337910,2.49845,4002.5,4001.0,0.18271018]
[1734310338109,1.61552074,4003.7,4000.7,0.7833]
[1734310338110,2.49877,4002.0,4000.7,0.7833]
[1734310338311,2.49843,4002.5,4000.7,0.7833]
[1734310338853,2.4985,4002.4,4000.7,0.7833]
[1734310339034,2.49902,4001.6,4000.7,0.7833]
[1734310339563,2.49889,4001.8,4000.7,0.7833]
[1734310339705,2.49885,4001.9,4000.2,3.32706]
[1734310340155,2.49885,4001.9,4000.3,0.26061194]
[1734310340313,2.49885,4001.9,4000.4,2.76033194]
[1734310340656,2.93152234,4002.7,4000.2,0.8272]
[1734310340657,0.8216,4002.2,4000.5,0.26061194]
[1734310340863,2.49871,4002.1,4000.6,2.57768372]
[1734310341040,0.8216,4002.2,4000.1,2.6251457]
[1734310341041,0.8216,4002.2,4000.7,3.39842372]
[1734310341254,2.49869,4002.1,4000.7,0.8208]
[1734310341763,0.8216,4002.2,4000.7,0.8208]
[1734310341972,2.49838,4002.6,4001.1,2.4993]
[1734310342756,0.7744,4002.7,4000.8,2.49945]
[1734310342757,2.49844,4002.5,4000.8,2.49945]
[1734310342965,3.70592234,4002.7,4000.7,0.8208]
[1734310343265,4.99674,4002.6,4000.7,0.8208]
[1734310343567,2.499,4001.6,4000.7,0.8208]
[1734310343721,2.49906,4001.5,4000.7,0.8208]
[1734310343928,2.49915,4001.4,4000.3,0.7641]
[1734310344267,3.28015,4002.0,4000.4,2.49972]
[1734310344435,2.49881,4001.9,4000.4,2.49972]
[1734310344945,0.7814,4002.0,4000.7,2.49954]
[1734310345151,2.49866,4002.2,4000.7,2.49954]
[1734310345668,3.2988,4002.8,4001.2,3.25963]
[1734310346220,2.49811,4003.1,4001.2,0.7604]
[1734310346420,0.8005,4003.2,4001.2,0.7604]
[1734310346421,0.8005,4003.2,4001.7,2.49893]
[1734310346771,2.49807,4003.1,4001.5,2.49905]
[1734310346963,0.8005,4003.2,4001.6,0.07806023]
[1734310347178,0.8005,4003.0,4001.2,0.7604]
[1734310347319,2.49879,4002.0,4000.5,0.12664205]
[1734310347522,2.49879,4002.0,4000.6,0.26079703]
[1734310347758,2.49879,4002.0,4000.5,2.49965]
[1734310347759,0.8005,4002.1,4000.4,0.7604]
[1734310347968,2.49889,4001.8,4000.5,0.07808098]
[1734310348214,2.49889,4001.8,4000.4,0.7604]
[1734310348535,2.49878,4002.0,4000.6,2.49961]
[1734310348735,2.49878,4002.0,4000.7,2.49955]
[1734310348940,0.8005,4002.1,4000.4,3.26009]
[1734310348941,2.49881,4001.9,4000.4,3.26009]
[1734310349253,2.49881,4001.9,4000.5,2.49968]
[1734310349804,0.8005,4002.1,4000.4,0.7604]
[1734310350643,2.49884,4001.9,4000.4,0.7604]
[1734310350837,2.49884,4001.9,4000.5,2.49968]
[1734310351079,0.8005,4002.1,4000.6,2.49962]
[1734310351285,2.49877,4002.0,4000.6,2.49962]
[1734310351578,0.8005,4002.1,4000.4,0.7604]
[1734310351579,2.49889,4001.8,4000.4,0.7604]
[1734310351978,2.49913,4001.4,4000.4,0.7604]
[1734310352154,2.4993,4001.2,4000.4,0.7604]
[1734310352356,2.49908,4001.5,4000.4,0.7604]
[1734310352650,0.8005,4002.1,4000.4,0.7604]
[1734310352651,2.49914,4001.4,4000.4,0.7604]
[1734310352837,0.8005,4002.1,4000.4,0.7604]
[1734310353039,0.8005,4002.1,4000.5,2.49967]
[1734310353040,2.49878,4002.0,4000.5,2.49967]
[1734310353280,0.786,4002.7,4000.4,0.7604]
[1734310353444,2.49853,4002.4,4000.7,0.8088]
[1734310353893,2.49853,4002.4,4000.2,0.12686532]
[1734310353894,0.786,4002.7,4001.0,0.8088]
[1734310354548,0.786,4002.7,4001.2,2.49922]
[1734310354870,2.49837,4002.6,4001.2,2.49922]
[1734310355077,2.49821,4002.9,4001.0,0.8088]
[1734310355255,2.49779,4003.6,4001.2,0.7653]
[1734310355439,0.8192,4003.7,4002.4,0.7653]
[1734310355645,2.49761,4003.9,4002.4,0.7653]
[1734310356253,2.49761,4003.9,4002.4,3.26378]
[1734310356742,2.49768,4003.7,4002.4,0.7653]
[1734310357352,2.49794,4003.3,4002.4,0.7653]
[1734310357564,0.7825,4003.7,4001.6,0.83]
[1734310357766,2.49787,4003.5,4001.6,0.83]
[1734310357967,2.49859,4002.3,4001.2,0.83]
[1734310358178,2.49901,4001.6,4001.2,0.83]
[1734310358355,2.4992,4001.3,4000.3,0.12259063]
[1734310358686,2.4992,4001.3,4000.2,0.7678]
[1734310358857,0.7808,4002.1,4000.2,0.7678]
[1734310359180,0.7808,4002.1,4000.3,2.4998]
[1734310359181,2.4989,4001.8,4000.3,2.4998]
[1734310359383,2.49897,4001.7,4000.2,0.7678]
[1734310359557,2.4988,4002.0,4000.2,0.7678]
[1734310359789,0.7808,4002.1,4000.2,0.7678]
[1734310359790,2.49913,4001.4,4000.2,0.7678]
[1734310360250,2.4989,4001.8,4000.5,2.49968]
[1734310360588,2.4989,4001.8,4000.3,2.49979]
[1734310360758,0.7808,4002.1,4000.4,0.07808411]
[1734310361162,2.49901,4001.6,4000.4,0.07808411]
[1734310361358,2.49884,4001.9,4000.3,2.49978]
[1734310361576,0.7808,4002.1,4000.4,0.26120384]
[1734310361747,2.49907,4001.5,4000.2,0.7678]
[1734310361946,0.7808,4002.1,4000.2,0.7678]
[1734310362245,2.49888,4001.8,4000.3,3.52878742]
[1734310362467,2.49888,4001.8,4000.4,0.07808742]
[1734310362661,2.49896,4001.7,4000.3,3.26759]
[1734310362841,0.7808,4002.1,4000.4,0.07808635]
[1734310363046,0.7808,4002.1,4000.3,0.7678]
[1734310363243,0.7808,4002.1,4000.1,2.49993]
[1734310363244,2.49871,4002.1,4000.7,0.7916]
[1734310363448,0.7575,4002.4,4000.7,0.7916]
[1734310364090,2.4989,4001.8,4000.7,0.7916]
[1734310364249,3.68902234,4002.4,4000.7,0.7916]
[1734310364453,2.49934,4001.1,4000.1,0.7853]
[1734310364685,2.4994,4001.0,4000.2,0.07809342]
[1734310364905,2.93152234,4001.2,4000.2,0.07809342]
[1734310365060,2.93152234,4001.2,4000.0,0.71166208]
[1734310365061,2.49976,4000.4,4000.0,0.71166208]
[1734310365259,2.49988,4000.2,4000.0,0.71166208]
[1734310371045,0.7808,4000.1,4000.0,0.71166208]
[1734310373273,0.7808,4000.1,3999.0,0.73836697]
[1734310373274,2.50056,3999.1,3999.0,0.73836697]
[1734310373832,2.50056,3999.1,3999.0,0.2487662]
[1734310374774,2.50056,3999.1,3999.0,0.06219155]
[1734310374971,2.50056,3999.1,3998.4,0.1654235]
[1734310374972,2.50093,3998.5,3998.4,0.1654235]
[1734310375474,2.50093,3998.5,3998.0,0.76507187]
[1734310375475,2.50118,3998.1,3998.0,0.76507187]
[1734310376860,2.50104,3998.4,3998.0,0.76507187]
[1734310377269,3.32605,3999.0,3998.0,0.76507187]
[1734310377270,0.49211116,3998.7,3998.0,0.76507187]
[1734310377593,2.50114,3998.2,3998.0,0.76507187]
[1734310378683,2.93152234,3998.1,3998.0,0.76507187]
[1734310379180,3.71042234,3998.1,3998.0,0.76507187]
[1734310379544,3.71042234,3998.1,3996.9,0.79177677]
[1734310379545,0.7789,3997.0,3996.9,0.79177677]
[1734310379891,2.50183,3997.1,3996.9,0.79177677]
[1734310380043,2.50164,3997.4,3996.9,0.79177677]
[1734310380237,2.50185,3997.1,3996.9,0.79177677]
[1734310380852,3.71042234,3997.9,3996.9,0.79177677]
[1734310381397,2.5013,3998.0,3995.9,1.64618166]
[1734310381398,2.50226,3996.4,3995.9,1.64618166]
[1734310381682,2.50226,3996.4,3995.9,0.81848166]
[1734310382106,0.49206114,3996.7,3995.9,0.81848166]
[1734310382107,2.5025,3996.0,3995.9,0.81848166]
[1734310382307,3.2644,3996.0,3995.9,0.81848166]
[1734310383422,3.2644,3996.0,3994.9,0.84518656]
[1734310383423,0.7619,3995.0,3994.9,6.56e-06]
[1734310383621,0.7619,3995.0,3994.4,0.1654235]
[1734310383767,2.50375,3994.0,3993.9,0.87189146]
[1734310383968,2.50435,3993.1,3992.9,0.89859635]
[1734310384585,0.7619,3994.0,3992.9,0.89859635]
[1734310384772,5.44940843,3994.5,3992.9,0.89859635]
[1734310384773,2.50384,3993.9,3992.9,0.89859635]
[1734310385712,2.94595843,3994.5,3992.9,0.89859635]
[1734310385882,2.50361,3994.3,3992.9,0.89859635]
[1734310386074,2.94595843,3994.5,3992.9,0.89859635]
[1734310386479,2.50373,3994.1,3992.9,0.89859635]
[1734310387113,2.94595843,3995.1,3993.0,0.7576]
[1734310387419,2.94595843,3995.7,3993.2,0.8084]
[1734310387718,2.94595843,3995.7,3994.6,0.8084]
[1734310388008,3.70355843,3996.4,3994.6,0.8084]
[1734310388221,0.49259727,3996.2,3994.6,0.8084]
[1734310388388,0.49259727,3996.2,3993.1,0.49925196]
[1734310388389,0.7587,3995.7,3994.3,2.50353]
[1734310388723,2.94595843,3995.8,3994.1,0.8168]
[1734310388724,0.49259727,3996.2,3994.2,2.50363]
[1734310388886,0.49259727,3996.2,3994.9,2.50315]
[1734310389087,0.49259727,3996.2,3995.0,0.8168]
[1734310389410,2.94595843,3996.4,3995.1,2.50302]
[1734310389575,5.44821843,3996.4,3995.0,0.8168]
[1734310389776,2.94595843,3996.4,3995.0,0.8168]
[1734310390128,5.44821843,3996.4,3995.0,0.8168]
[1734310390423,0.51211831,3996.3,3994.2,0.12750083]
[1734310390625,2.50257,3995.9,3994.2,2.5036]
[1734310390776,0.51211831,3996.3,3993.6,2.504]
[1734310390975,0.51211831,3996.3,3993.5,0.12510074]
[1734310390976,0.51211831,3996.3,3993.9,2.50375]
[1734310391184,0.51211831,3996.3,3993.5,0.12510074]
[1734310391185,2.50261,3995.9,3994.2,2.5036]
[1734310391585,2.50233,3996.3,3994.7,2.50329]
[1734310391792,2.94595843,3996.4,3994.7,2.50086918]
[1734310391973,2.50239,3996.2,3994.7,2.50086918]
[1734310392175,2.94595843,3996.4,3994.8,2.50322]
[1734310392401,2.94595843,3996.4,3993.7,8.80394]
[1734310392402,2.50246,3996.1,3993.7,6.3]
[1734310392577,5.94819086,3996.4,3993.7,6.3]
[1734310392778,0.49995243,3996.4,3995.2,2.50297]
[1734310393010,0.7587,3996.5,3994.9,2.50315]
[1734310393215,0.7587,3996.5,3995.1,0.7369]
[1734310393735,2.94595843,3997.0,3995.1,0.7369]
[1734310393736,3.45241935,3997.0,3995.1,0.7369]
[1734310393895,0.7944,3997.1,3995.1,1.22543753]
[1734310394096,0.7944,3997.1,3995.1,0.7369]
[1734310394454,2.50202,3996.8,3995.4,2.50286]
[1734310394598,3.29623,3997.1,3995.4,2.50286]
[1734310394953,3.29623,3997.1,3995.6,2.50274]
[1734310395106,0.7944,3997.1,3995.1,0.7369]
[1734310395458,0.7944,3997.1,3995.8,2.5026]
[1734310395798,5.44749843,3997.6,3996.1,0.7369]
[1734310396006,5.44749843,3997.6,3996.1,3.23929]
[1734310396311,2.94595843,3997.6,3996.4,2.50222]
[1734310396713,2.94595843,3998.2,3996.1,0.7369]
[1734310396921,2.50129,3998.0,3996.4,2.50221]
[1734310397093,2.94595843,3998.2,3996.4,2.50221]
[1734310397297,2.50133,3997.9,3996.5,2.50217]
[1734310397496,3.45357086,3998.2,3996.8,2.50197]
[1734310397695,5.95471086,3998.2,3996.9,0.7369]
[1734310398131,0.50761243,3998.2,3997.1,2.50175]
[1734310398324,0.50761243,3998.2,3995.8,0.25]
[1734310398325,0.8142,3998.1,3996.3,0.7369]
[1734310398640,0.8142,3998.1,3996.3,3.23919]
[1734310398641,2.50136,3997.9,3996.3,3.23919]
[1734310398823,2.50136,3997.9,3996.4,2.5022]
[1734310399022,2.50136,3997.9,3996.3,0.7369]
[1734310399023,2.50114,3998.2,3996.7,2.50204]
[1734310399233,2.50114,3998.2,3996.3,0.7369]
[1734310399413,0.8142,3998.6,3996.6,2.50206]
[1734310399604,3.00374853,3998.5,3996.3,3.23917]
[1734310399805,0.50280853,3998.5,3996.3,0.7369]
[1734310400029,2.50151,3997.6,3996.3,0.86075062]
[1734310400304,2.50156,3997.5,3996.3,0.86075062]
[1734310401128,2.50165,3997.4,3996.3,0.7369]
[1734310401347,0.8142,3998.0,3996.3,0.7369]
[1734310401549,2.50186,3997.1,3995.9,0.7369]
[1734310401907,0.8142,3998.0,3995.9,0.7369]
[1734310401908,2.50137,3997.8,3995.9,0.7369]
[1734310402243,2.5024,3996.2,3995.4,0.7369]
[1734310402405,2.50233,3996.3,3995.4,0.7369]
[1734310402601,1.27707304,3997.3,3995.4,0.7369]
[1734310402806,2.50195,3996.9,3995.4,0.7369]
[1734310403066,1.27707304,3997.3,3995.4,0.7369]
[1734310403208,2.50119,3998.1,3996.3,2.50229]
[1734310403209,2.50149,3997.7,3996.3,2.50229]
[1734310403409,2.50126,3998.0,3995.9,0.7369]
[1734310403663,2.50126,3998.0,3996.7,0.7369]
[1734310403808,0.773,3998.6,3996.7,0.7369]
[1734310403809,2.50106,3998.3,3996.7,0.7369]
[1734310404419,2.50108,3998.3,3996.9,2.50193]
[1734310404612,1.27167065,3998.6,3996.7,0.7369]
[1734310405265,2.50114,3998.2,3996.7,3.23894]
[1734310405412,2.50125,3998.0,3996.7,3.36204721]
[1734310405827,0.769,3999.0,3996.8,0.7369]
[1734310406112,0.5,4000.7,3998.1,2.50114]
[1734310406113,0.769,3999.9,3998.1,2.50114]
[1734310406318,2.50026,3999.6,3998.2,0.7369]
[1734310406531,0.769,3999.9,3998.2,0.7369]
[1734310406532,2.50009,3999.9,3998.2,0.7369]
[1734310406850,2.49981,4000.3,3998.2,0.7369]
[1734310407145,0.769,4000.4,3998.3,2.50101]
[1734310407146,2.49987,4000.2,3998.3,2.50101]
[1734310407333,2.50047,3999.3,3998.2,0.7369]
[1734310407521,2.50028,3999.6,3998.3,2.50104]
[1734310407887,3.45038162,4000.1,3998.4,2.50098]
[1734310407888,2.50013,3999.8,3998.4,2.50098]
[1734310408014,3.45038162,4000.1,3998.2,3.23801]
[1734310408353,0.50442319,4000.1,3998.2,0.7369]
[1734310408553,0.50442319,4000.1,3998.1,0.12303625]
[1734310408554,0.769,4000.4,3998.3,0.7369]
[1734310408762,2.50016,3999.8,3998.4,2.50094]
[1734310409264,2.50044,3999.3,3998.3,0.7369]
[1734310409436,0.50983568,4000.6,3998.3,0.7369]
[1734310409632,2.94595843,4000.7,3998.1,6.3]
[1734310409834,0.769,4000.9,3998.0,2.50125]
[1734310409835,0.769,4000.9,3999.3,2.50039]
[1734310410130,3.26845,4000.9,3999.3,2.50037]
[1734310410330,0.769,4001.5,3999.4,0.02500301]
[1734310410551,0.7619,4002.1,4000.0,0.7369]
[1734310410721,0.7619,4002.1,4000.1,2.49993]
[1734310410722,0.48783414,4001.9,4000.1,2.49993]
[1734310411061,2.49843,4002.5,4000.5,2.49966]
[1734310411259,2.49843,4002.5,4000.5,2.480198]
[1734310411572,2.49877,4002.0,4000.5,2.480198]
[1734310411780,0.7654,4002.6,4000.2,0.7369]
[1734310411924,2.49834,4002.7,4000.6,0.7369]
[1734310412129,3.71135843,4003.8,4001.2,0.7369]
[1734310412464,3.71135843,4003.8,4000.8,6.3]
[1734310412465,0.49368455,4003.7,4001.6,2.49895]
[1734310412621,0.49368455,4003.7,4001.3,0.7369]
[1734310412622,2.49791,4003.4,4001.7,2.49891]
[1734310412823,0.7654,4003.8,4001.5,0.7369]
[1734310413025,2.4977,4003.7,4001.5,0.7369]
[1734310413327,0.7654,4003.8,4002.0,0.7369]
[1734310413526,2.49735,4004.3,4002.1,2.49866]
[1734310413527,0.7654,4004.3,4002.1,2.49866]
[1734310413729,2.49795,4003.3,4002.0,0.7369]
[1734310413950,2.49767,4003.8,4002.1,0.7369]
[1734310414282,2.49774,4003.7,4002.1,3.23557]
[1734310414566,0.7654,4004.3,4002.1,0.7369]
[1734310414771,2.4978,4003.6,4002.1,0.7369]
[1734310414943,2.49737,4004.2,4002.1,0.7369]
[1734310415338,0.7654,4004.3,4002.2,2.4986]
[1734310415667,2.49752,4004.0,4002.2,2.4986]
[1734310415886,0.7654,4004.3,4002.3,0.7369]
[1734310416065,0.50734051,4004.4,4002.3,0.7369]
[1734310416066,2.49783,4003.5,4002.3,0.7369]
[1734310416268,2.49759,4003.9,4002.3,0.7369]
[1734310416872,2.49767,4003.8,4002.3,0.7369]
[1734310417190,1.33158755,4004.7,4002.3,0.7369]
[1734310417382,3.82864755,4004.7,4002.3,0.7369]
[1734310417568,0.8194,4004.7,4002.4,0.7369]
[1734310417777,2.49702,4004.8,4002.9,0.7369]
[1734310417954,2.49687,4005.1,4003.0,0.38281323]
[1734310418485,2.49687,4005.1,4003.1,0.7369]
[1734310418689,2.98592167,4005.1,4003.1,0.7369]
[1734310418858,2.49703,4004.8,4003.1,0.7369]
[1734310419047,0.8184,4005.9,4003.3,0.7369]
[1734310419397,2.49677,4005.2,4003.5,2.49778]
[1734310419684,0.8184,4005.9,4003.6,0.7369]
[1734310419685,3.00540951,4005.8,4003.6,0.7369]
[1734310419886,2.49644,4005.7,4003.6,0.7369]
[1734310420346,2.49698,4004.9,4003.6,0.7369]
[1734310420904,0.50902951,4005.8,4002.8,0.12310257]
[1734310420905,0.50902951,4005.8,4003.7,0.02497502]
[1734310421047,0.50902951,4005.8,4003.8,0.7369]
[1734310421400,0.8184,4005.9,4004.1,0.7369]
[1734310421401,2.49637,4005.9,4004.1,0.7369]
[1734310421597,2.49605,4006.4,4004.1,0.7369]
[1734310421801,2.49602,4006.4,4004.1,0.7369]